fUST/lending_fUST_20250208
["ID","MTS","AMOUNT","RATE_DAILY","PERIOD"]
[352171960,1738973449873,-500.0,0.00011232,2]
[352171961,1738973449882,-500.0,0.00011232,2]
[352171962,1738973449891,-500.0,0.00011232,2]
[352171963,1738973449904,-500.0,0.00011232,2]
[352171964,1738973449917,-591.15095071,0.00011232,2]
[352171965,1738973449928,-509.48,0.00011232,2]
[352171966,1738973449939,-500.0,0.00011232,2]
[352171967,1738973449949,-500.0,0.00011232,2]
[352171968,1738973449958,-500.0,0.00011232,2]
[352171969,1738973449967,-500.0,0.00011232,2]
[352171970,1738973449977,-500.0,0.00011232,2]
[352171971,1738973449985,-803.16,0.00011232,2]
[352171972,1738973449994,-500.0,0.00011232,2]
[352171973,1738973450004,-500.0,0.00011232,2]
[352171974,1738973450015,-500.0,0.00011232,2]
[352171975,1738973450024,-500.0,0.00011232,2]
[352171976,1738973450033,-500.0,0.00011232,2]
[352171977,1738973450042,-500.0,0.00011232,2]
[352171978,1738973450051,-500.0,0.00011232,2]
[352171979,1738973450060,-977.45,0.00011232,2]
[352171980,1738973450070,-567.56756657,0.00011232,2]
[352171981,1738973450080,-500.0,0.00011232,2]
[352171982,1738973450089,-500.0,0.00011232,2]
[352171983,1738973450099,-948.52,0.00011232,2]
[352171984,1738973450108,-500.0,0.00011232,2]
[352171985,1738973450117,-500.0,0.00011232,2]
[352171986,1738973450127,-475.30633217,0.00011232,2]
[352171987,1738973450136,-500.0,0.00011232,2]
[352171988,1738973450145,-506.91672502,0.00011232,2]
[352171989,1738973450155,-500.0,0.00011232,2]
[352171990,1738973450164,-500.0,0.00011232,2]
[352171991,1738973450174,-500.0,0.00011232,2]
[352171992,1738973450188,-500.0,0.00011232,2]
[352171993,1738973450200,-500.0,0.00011232,2]
[352171994,1738973450210,-517.09,0.00011232,2]
[352171995,1738973450220,-500.0,0.00011232,2]
[352171996,1738973450229,-500.0,0.00011232,2]
[352171997,1738973450240,-500.0,0.00011232,2]
[352171998,1738973450250,-589.02872179,0.00011232,2]
[352171999,1738973450259,-500.0,0.00011232,2]
[352172000,1738973450268,-213.30540696,0.00011232,2]
[352172001,1738973450277,-541.26732473,0.00011232,2]
[352172002,1738973450286,-500.0,0.00011232,2]
[352172003,1738973450297,-500.0,0.00011232,2]
[352172004,1738973450307,-636.77969313,0.00011232,2]
[352172005,1738973450321,-1116.85,0.00011232,2]
[352172006,1738973450330,-500.0,0.00011232,2]
[352172007,1738973450339,-500.0,0.00011232,2]
[352172008,1738973450349,-326.39705951,0.00011232,2]
[352172009,1738973450358,-500.0,0.00011232,2]
[352172010,1738973450367,-500.0,0.00011232,2]
[352172011,1738973450376,-297.40344945,0.00011232,2]
[352172012,1738973450386,-500.0,0.00011232,2]
[352172013,1738973450395,-1067.53,0.00011232,2]
[352172014,1738973450404,-941.93,0.00011232,2]
[352172015,1738973450414,-500.0,0.00011232,2]
[352172016,1738973450425,-500.0,0.00011232,2]
[352172017,1738973450434,-1119.88,0.00011232,2]
[352172018,1738973450444,-520.20760852,0.00011232,2]
[352172019,1738973450453,-500.0,0.00011232,2]
[352172020,1738973450462,-2320.93,0.00011232,2]
[352172021,1738973450472,-500.0,0.00011232,2]
[352172022,1738973450482,-819.76,0.00011232,2]
[352172023,1738973450491,-1153.88,0.00011232,2]
[352172024,1738973450500,-919.55,0.00011232,2]
[352172025,1738973450510,-519.32634292,0.00011232,2]
[352172026,1738973450520,-500.0,0.00011232,2]
[352172027,1738973450529,-500.0,0.00011232,2]
[352172028,1738973450539,-500.0,0.00011232,2]
[352172029,1738973450548,-500.0,0.00011232,2]
[352172030,1738973450558,-2549.1,0.00011232,2]
[352172031,1738973450568,-516.70339519,0.00011232,2]
[352172032,1738973450578,-1259.73,0.00011232,2]
[352172033,1738973450588,-500.0,0.00011232,2]
[352172034,1738973450597,-500.0,0.00011232,2]
[352172035,1738973450607,-500.0,0.00011232,2]
[352172036,1738973450617,-2862.95,0.00011232,2]
[352172037,1738973450628,-9573.8,0.00011232,2]
[352172038,1738973450638,-222.68,0.00011232,2]
[352172039,1738973450647,-500.0,0.00011232,2]
[352172040,1738973450656,-1322.92,0.00011232,2]
[352172041,1738973450666,-500.0,0.00011232,2]
[352172042,1738973450679,-500.0,0.00011232,2]
[352172043,1738973450688,-500.0,0.00011232,2]
[352172044,1738973450697,-1370.81,0.00011232,2]
[352172045,1738973450707,-482.42,0.00011232,2]
[352172046,1738973450716,-722.89,0.00011232,2]
[352172047,1738973450726,-566.84,0.00011232,2]
[352172048,1738973450735,-500.0,0.00011232,2]
[352172049,1738973450744,-817.68,0.00011232,2]
[352172050,1738973450754,-1003.65,0.00011232,2]
[352172051,1738973450764,-538.4,0.00011232,2]
[352172052,1738973450773,-500.0,0.00011232,2]
[352172053,1738973450783,-500.0,0.00011232,2]
[352172054,1738973450793,-500.0,0.00011232,2]
[352172055,1738973450802,-500.0,0.00011232,2]
[352172056,1738973450812,-3516.95,0.00011232,2]
[352172057,1738973450822,-561.06,0.00011232,2]
[352172058,1738973450831,-785.66,0.00011232,2]
[352172059,1738973450840,-32344.5,0.00011232,2]
[352172060,1738973450850,-1431.68,0.00011232,2]
[352172061,1738973450859,-1085.86,0.00011232,2]
[352172062,1738973450869,-500.0,0.00011232,2]
[352172063,1738973450880,-500.0,0.00011232,2]
[352172064,1738973450890,-500.0,0.00011232,2]
[352172065,1738973450899,-188.72,0.00011232,2]
[352172066,1738973450909,-500.0,0.00011232,2]
[352172067,1738973450919,-728.48,0.00011232,2]
[352172068,1738973450933,-500.0,0.00011232,2]
[352172069,1738973450947,-500.0,0.00011232,2]
[352172070,1738973450957,-500.0,0.00011232,2]
[352172071,1738973450966,-1489.13,0.00011232,2]
[352172072,1738973450976,-500.0,0.00011232,2]
[352172073,1738973450986,-500.0,0.00011232,2]
[352172074,1738973450996,-8197.78,0.00011232,2]
[352172075,1738973451005,-500.0,0.00011232,2]
[352172076,1738973451015,-176.04,0.00011232,2]
[352172077,1738973451026,-500.0,0.00011232,2]
[352172078,1738973451036,-521.22,0.00011232,2]
[352172079,1738973451045,-2443.17,0.00011232,2]
[352172080,1738973451055,-500.0,0.00011232,2]
[352172081,1738973451064,-500.0,0.00011232,2]
[352172082,1738973451074,-2503.36,0.00011232,2]
[352172083,1738973451084,-1541.46,0.00011232,2]
[352172084,1738973451093,-500.0,0.00011232,2]
[352172085,1738973451103,-1044.62,0.00011232,2]
[352172086,1738973451112,-705.01,0.00011232,2]
[352172087,1738973451122,-500.0,0.00011232,2]
[352172088,1738973451131,-5006.08,0.00011232,2]
[352172089,1738973451140,-500.0,0.00011232,2]
[352172090,1738973451150,-1173.99,0.00011232,2]
[352172091,1738973451159,-500.0,0.00011232,2]
[352172092,1738973451169,-500.0,0.00011232,2]
[352172093,1738973451180,-500.0,0.00011232,2]
[352172094,1738973451189,-563.66,0.00011232,2]
[352172095,1738973451199,-202.65,0.00011232,2]
[352172096,1738973451210,-500.0,0.00011232,2]
[352172097,1738973451232,-656.1,0.00011232,2]
[352172098,1738973451242,-500.0,0.00011232,2]
[352172099,1738973451253,-500.0,0.00011232,2]
[352172100,1738973451262,-500.0,0.00011232,2]
[352172101,1738973451272,-500.0,0.00011232,2]
[352172102,1738973451283,-500.0,0.00011232,2]
[352172103,1738973451293,-619.59,0.00011232,2]
[352172104,1738973451303,-500.0,0.00011232,2]
[352172105,1738973451313,-561.75,0.00011232,2]
[352172106,1738973451323,-2249.97,0.00011232,2]
[352172107,1738973451334,-797.26,0.00011232,2]
[352172108,1738973451343,-3285.86,0.00011232,2]
[352172109,1738973451354,-502.77,0.00011232,2]
[352172110,1738973451364,-500.0,0.00011232,2]
[352172111,1738973451374,-527.79,0.00011232,2]
[352172112,1738973451385,-1066.74,0.00011232,2]
[352172113,1738973451395,-1256.22,0.00011232,2]
[352172114,1738973451404,-515.15,0.00011232,2]
[352172115,1738973451414,-500.0,0.00011232,2]
[352172116,1738973451424,-500.0,0.00011232,2]
[352172117,1738973451434,-354.6451938,0.00011315,2]
[352172118,1738973451444,-151.0,0.00011369,2]
[352172119,1738973451453,-243.203871,0.00011369,2]
[352172120,1738973451463,-243.203871,0.00011369,2]
[352172121,1738973451474,-518.92,0.00011369,2]
[352172122,1738973451483,-500.0,0.00011369,2]
[352172123,1738973451494,-500.0,0.00011369,2]
[352172124,1738973451504,-500.0,0.00011369,2]
[352172125,1738973451514,-500.0,0.00011369,2]
[352172126,1738973451524,-500.0,0.00011369,2]
[352172127,1738973451535,-500.0,0.00011369,2]
[352172128,1738973451547,-500.0,0.00011369,2]
[352172129,1738973451557,-500.0,0.00011369,2]
[352172130,1738973451567,-500.0,0.00011369,2]
[352172131,1738973451578,-500.0,0.00011369,2]
[352172132,1738973451588,-500.0,0.00011369,2]
[352172133,1738973451598,-529.02,0.00011369,2]
[352172134,1738973451608,-500.0,0.00011369,2]
[352172135,1738973451617,-500.0,0.00011369,2]
[352172136,1738973451628,-500.0,0.00011369,2]
[352172137,1738973451639,-500.0,0.00011369,2]
[352172138,1738973451649,-500.0,0.00011369,2]
[352172139,1738973451659,-500.0,0.00011369,2]
[352172140,1738973451669,-500.0,0.00011369,2]
[352172141,1738973451680,-329.90026881,0.00011369,2]
[352172142,1738973451690,-500.0,0.00011369,2]
[352172143,1738973451700,-500.0,0.00011369,2]
[352172144,1738973451711,-345.12,0.00011369,2]
[352172145,1738973451721,-500.0,0.00011369,2]
[352172146,1738973451731,-645.26,0.00011369,2]
[352172147,1738973451740,-500.0,0.00011369,2]
[352172148,1738973451750,-500.0,0.00011369,2]
[352172149,1738973451759,-500.0,0.00011369,2]
[352172150,1738973451770,-500.0,0.00011369,2]
[352172151,1738973451779,-361.83,0.00011369,2]
[352172152,1738973451789,-500.0,0.00011369,2]
[352172153,1738973451799,-500.0,0.00011369,2]
[352172154,1738973451809,-500.0,0.00011369,2]
[352172155,1738973451818,-541.61,0.00011369,2]
[352172156,1738973451828,-800.14,0.00011369,2]
[352172157,1738973451838,-500.0,0.00011369,2]
[352172158,1738973451847,-500.0,0.00011369,2]
[352172159,1738973451857,-500.0,0.00011369,2]
[352172160,1738973451867,-500.0,0.00011369,2]
[352172161,1738973451877,-576.2,0.00011369,2]
[352172162,1738973451887,-500.0,0.00011369,2]
[352172163,1738973451897,-500.0,0.00011369,2]
[352172164,1738973451907,-500.0,0.00011369,2]
[352172165,1738973451916,-500.0,0.00011369,2]
[352172166,1738973451927,-500.0,0.00011369,2]
[352172167,1738973451937,-803.16,0.00011369,2]
[352172168,1738973452106,-500.0,0.00011369,2]
[352172169,1738973452138,-500.0,0.00011369,2]
[352172170,1738973452147,-183.77,0.00011369,2]
[352172171,1738973452157,-500.0,0.00011369,2]
[352172172,1738973452167,-500.0,0.00011369,2]
[352172173,1738973452178,-977.45,0.00011369,2]
[352172174,1738973452187,-151.78966454,0.00011369,2]
[352172175,1738973452197,-500.0,0.00011369,2]
[352172176,1738973452207,-948.52,0.00011369,2]
[352172177,1738973452216,-500.0,0.00011369,2]
[352172178,1738973452226,-500.0,0.00011369,2]
[352172179,1738973452235,-199.0,0.00011369,2]
[352172180,1738973452245,-500.0,0.00011369,2]
[352172181,1738973452254,-500.0,0.00011369,2]
[352172182,1738973452263,-500.0,0.00011369,2]
[352172183,1738973452273,-500.0,0.00011369,2]
[352172184,1738973452283,-517.09,0.00011369,2]
[352172185,1738973452292,-500.0,0.00011369,2]
[352172186,1738973452302,-500.0,0.00011369,2]
[352172187,1738973452311,-559.32,0.00011369,2]
[352172188,1738973452322,-500.0,0.00011369,2]
[352172189,1738973452331,-1116.85,0.00011369,2]
[352172190,1738973452342,-500.0,0.00011369,2]
[352172191,1738973452351,-500.0,0.00011369,2]
[352172192,1738973452361,-500.0,0.00011369,2]
[352172193,1738973452371,-1067.53,0.00011369,2]
[352172194,1738973452381,-941.93,0.00011369,2]
[352172195,1738973452390,-270.4,0.00011369,2]
[352172196,1738973452399,-500.0,0.00011369,2]
[352172197,1738973452410,-1119.88,0.00011369,2]
[352172198,1738973452419,-500.0,0.00011369,2]
[352172199,1738973452429,-2320.93,0.00011369,2]
[352172200,1738973452439,-500.0,0.00011369,2]
[352172201,1738973452449,-819.76,0.00011369,2]
[352172202,1738973452458,-1153.88,0.00011369,2]
[352172203,1738973452467,-919.55,0.00011369,2]
[352172204,1738973452477,-500.0,0.00011369,2]
[352172205,1738973452487,-500.0,0.00011369,2]
[352172206,1738973452496,-245.06,0.00011369,2]
[352172207,1738973452506,-500.0,0.00011369,2]
[352172208,1738973452517,-2549.1,0.00011369,2]
[352172209,1738973452527,-1259.73,0.00011369,2]
[352172210,1738973452536,-500.0,0.00011369,2]
[352172211,1738973452545,-500.0,0.00011369,2]
[352172212,1738973452555,-2862.95,0.00011369,2]
[352172213,1738973452564,-9573.8,0.00011369,2]
[352172214,1738973452574,-500.0,0.00011369,2]
[352172215,1738973452583,-1322.92,0.00011369,2]
[352172216,1738973452593,-500.0,0.00011369,2]
[352172217,1738973452603,-1370.81,0.00011369,2]
[352172218,1738973452612,-722.89,0.00011369,2]
[352172219,1738973452622,-566.84,0.00011369,2]
[352172220,1738973452632,-500.0,0.00011369,2]
[352172221,1738973452642,-817.68,0.00011369,2]
[352172222,1738973452652,-1003.65,0.00011369,2]
[352172223,1738973452661,-538.4,0.00011369,2]
[352172224,1738973452671,-500.0,0.00011369,2]
[352172225,1738973452681,-3516.95,0.00011369,2]
[352172226,1738973452690,-561.06,0.00011369,2]
[352172227,1738973452700,-785.66,0.00011369,2]
[352172228,1738973452710,-32344.5,0.00011369,2]
[352172229,1738973452720,-1431.68,0.00011369,2]
[352172230,1738973452729,-1085.86,0.00011369,2]
[352172231,1738973452740,-500.0,0.00011369,2]
[352172232,1738973452749,-500.0,0.00011369,2]
[352172233,1738973452759,-500.0,0.00011369,2]
[352172234,1738973452769,-460.66,0.00011369,2]
[352172235,1738973452780,-728.48,0.00011369,2]
[352172236,1738973452791,-500.0,0.00011369,2]
[352172237,1738973452802,-500.0,0.00011369,2]
[352172238,1738973452813,-500.0,0.00011369,2]
[352172239,1738973452823,-1489.13,0.00011369,2]
[352172240,1738973452831,-500.0,0.00011369,2]
[352172241,1738973452841,-8197.78,0.00011369,2]
[352172242,1738973452851,-500.0,0.00011369,2]
[352172243,1738973452861,-567.52,0.00011369,2]
[352172244,1738973452871,-521.22,0.00011369,2]
[352172245,1738973452881,-2443.17,0.00011369,2]
[352172246,1738973452891,-500.0,0.00011369,2]
[352172247,1738973452900,-500.0,0.00011369,2]
[352172248,1738973452909,-2503.36,0.00011369,2]
[352172249,1738973452921,-1541.46,0.00011369,2]
[352172250,1738973452930,-254.16,0.00011369,2]
[352172251,1738973452940,-1044.62,0.00011369,2]
[352172252,1738973452952,-705.01,0.00011369,2]
[352172253,1738973452961,-5006.08,0.00011369,2]
[352172254,1738973452970,-1173.99,0.00011369,2]
[352172255,1738973452981,-500.0,0.00011369,2]
[352172256,1738973452990,-500.0,0.00011369,2]
[352172257,1738973452999,-656.1,0.00011369,2]
[352172258,1738973453009,-500.0,0.00011369,2]
[352172259,1738973453019,-500.0,0.00011369,2]
[352172260,1738973453029,-500.0,0.00011369,2]
[352172261,1738973453039,-619.59,0.00011369,2]
[352172262,1738973453048,-500.0,0.00011369,2]
[352172263,1738973453057,-561.75,0.00011369,2]
[352172264,1738973453067,-2249.97,0.00011369,2]
[352172265,1738973453076,-797.26,0.00011369,2]
[352172266,1738973453085,-3285.86,0.00011369,2]
[352172267,1738973453095,-502.77,0.00011369,2]
[352172268,1738973453104,-500.0,0.00011369,2]
[352172269,1738973453114,-527.79,0.00011369,2]
[352172270,1738973453123,-1066.74,0.00011369,2]
[352172271,1738973453133,-1256.22,0.00011369,2]
[352172272,1738973453143,-500.0,0.00011369,2]
[352172273,1738973453152,-500.0,0.00011369,2]
[352172274,1738973453161,-2809.71171452,0.00011406,2]
[352172275,1738973453172,-162.916233,0.00011416,2]
[352172276,1738973453182,-243.203871,0.00011506,2]
[352172277,1738973453191,-243.203871,0.00011506,2]
[352172278,1738973453201,-783.75877784,0.00011506,2]
[352172279,1738973453210,-152.904828,0.00011506,2]
[352172280,1738973453220,-500.0,0.00011506,2]
[352172281,1738973453229,-500.0,0.00011506,2]
[352172282,1738973453238,-500.0,0.00011506,2]
[352172283,1738973453248,-468.14043361,0.00011506,2]
[352172284,1738973453257,-500.0,0.00011506,2]
[352172285,1738973453268,-500.0,0.00011506,2]
[352172286,1738973453279,-500.0,0.00011506,2]
[352172287,1738973453288,-529.02,0.00011506,2]
[352172288,1738973453298,-500.0,0.00011506,2]
[352172289,1738973453307,-500.0,0.00011506,2]
[352172290,1738973453317,-500.0,0.00011506,2]
[352172291,1738973453326,-645.26,0.00011506,2]
[352172292,1738973453335,-500.0,0.00011506,2]
[352172293,1738973453345,-500.0,0.00011506,2]
[352172294,1738973453355,-500.0,0.00011506,2]
[352172295,1738973453365,-541.61,0.00011506,2]
[352172296,1738973453374,-800.14,0.00011506,2]
[352172297,1738973453384,-500.0,0.00011506,2]
[352172298,1738973453393,-500.0,0.00011506,2]
[352172299,1738973453403,-500.0,0.00011506,2]
[352172300,1738973453412,-500.0,0.00011506,2]
[352172301,1738973453423,-500.0,0.00011506,2]
[352172302,1738973453433,-803.16,0.00011506,2]
[352172303,1738973453442,-361.98,0.00011506,2]
[352172304,1738973453452,-405.28,0.00011506,2]
[352172305,1738973453461,-500.0,0.00011506,2]
[352172306,1738973453471,-977.45,0.00011506,2]
[352172307,1738973453480,-948.52,0.00011506,2]
[352172308,1738973453491,-492.0,0.00011506,2]
[352172309,1738973453500,-500.0,0.00011506,2]
[352172310,1738973453509,-500.0,0.00011506,2]
[352172311,1738973453520,-517.09,0.00011506,2]
[352172312,1738973453530,-217.79,0.00011506,2]
[352172313,1738973453541,-1116.85,0.00011506,2]
[352172314,1738973453551,-500.0,0.00011506,2]
[352172315,1738973453562,-500.0,0.00011506,2]
[352172316,1738973453573,-500.0,0.00011506,2]
[352172317,1738973453583,-1067.53,0.00011506,2]
[352172318,1738973453593,-941.93,0.00011506,2]
[352172319,1738973453603,-500.0,0.00011506,2]
[352172320,1738973453612,-1119.88,0.00011506,2]
[352172321,1738973453623,-2320.93,0.00011506,2]
[352172322,1738973453632,-500.0,0.00011506,2]
[352172323,1738973453643,-819.76,0.00011506,2]
[352172324,1738973453653,-1153.88,0.00011506,2]
[352172325,1738973453663,-919.55,0.00011506,2]
[352172326,1738973453673,-500.0,0.00011506,2]
[352172327,1738973453684,-500.0,0.00011506,2]
[352172328,1738973453694,-2549.1,0.00011506,2]
[352172329,1738973453704,-500.0,0.00011506,2]
[352172330,1738973453714,-1259.73,0.00011506,2]
[352172331,1738973453723,-500.0,0.00011506,2]
[352172332,1738973453732,-2862.95,0.00011506,2]
[352172333,1738973453752,-9573.8,0.00011506,2]
[352172334,1738973453761,-500.0,0.00011506,2]
[352172335,1738973453770,-1322.92,0.00011506,2]
[352172336,1738973453782,-500.0,0.00011506,2]
[352172337,1738973453792,-1370.81,0.00011506,2]
[352172338,1738973453801,-722.89,0.00011506,2]
[352172339,1738973453811,-566.84,0.00011506,2]
[352172340,1738973453820,-500.0,0.00011506,2]
[352172341,1738973453829,-817.68,0.00011506,2]
[352172342,1738973453838,-1003.65,0.00011506,2]
[352172343,1738973453847,-538.4,0.00011506,2]
[352172344,1738973453856,-472.88,0.00011506,2]
[352172345,1738973453866,-151.0,0.00011506,2]
[352172346,1738973453875,-3485.36276546,0.00011506,2]
[352172347,1738973454159,-500.0,0.00010958,2]
[352172348,1738973454168,-132.77802642,0.00010958,2]
[352172350,1738974305918,10000.0,0.000192,120]
[352172351,1738974318065,10000.0,0.000192,120]
[352172352,1738974333346,2335.43,0.000192,120]
[352172410,1738974632666,-5816.1395398,0.0001014,2]
[352172412,1738974632675,-161.5729032,0.00010858,2]
[352172414,1738974632685,-161.5729032,0.00010949,2]
[352172416,1738974632694,-300.0,0.00010956,2]
[352172418,1738974632703,-13797.751064,0.00010957,2]
[352172420,1738974632712,-500.0,0.00010957,2]
[352172422,1738974632721,-500.0,0.00010957,2]
[352172424,1738974632730,-500.0,0.00010957,2]
[352172426,1738974632739,-530.17355497,0.00010957,2]
[352172428,1738974632748,-352.46052676,0.00010957,2]
[352172430,1738974632758,-500.0,0.00010957,2]
[352172432,1738974632767,-301.51098945,0.00010958,2]
[352172433,1738974632775,-500.0,0.00010958,2]
[352172435,1738974632784,-500.0,0.00010958,2]
[352172437,1738974632794,-500.0,0.00010958,2]
[352172440,1738974632803,-500.0,0.00010958,2]
[352172441,1738974632812,-502.66595979,0.00010958,2]
[352172443,1738974632822,-500.36886257,0.00010958,2]
[352172445,1738974632831,-453.24663508,0.00010958,2]
[352172448,1738974632842,-505.12203579,0.00010958,2]
[352172450,1738974632852,-500.0,0.00010958,2]
[352172452,1738974632861,-406.89935065,0.00010958,2]
[352172454,1738974632874,-93.10064935,0.00010958,2]
[352172456,1738974632884,-500.0,0.00010958,2]
[352172458,1738974632893,-500.0,0.00010958,2]
[352172460,1738974632903,-500.0,0.00010958,2]
[352172462,1738974632913,-500.0,0.00010958,2]
[352172464,1738974632922,-500.0,0.00010958,2]
[352172466,1738974632932,-398.93290585,0.00010958,2]
[352172469,1738974632951,-101.06709415,0.00010958,2]
[352172471,1738974632961,-500.0,0.00010958,2]
[352172473,1738974632970,-500.0,0.00010958,2]
[352172475,1738974632980,-339.74160945,0.00010958,2]
[352172477,1738974632991,-160.25839055,0.00010958,2]
[352172479,1738974633001,-500.0,0.00010958,2]
[352172481,1738974633010,-500.0,0.00010958,2]
[352172483,1738974633020,-500.0,0.00010958,2]
[352172485,1738974633030,-480.3416095,0.00010958,2]
[352172860,1738974638436,-19.6583905,0.00010958,2]
[352172861,1738974638445,-500.0,0.00010958,2]
[352172862,1738974638454,-500.0,0.00010958,2]
[352172863,1738974638464,-500.0,0.00010958,2]
[352172864,1738974638473,-493.96247745,0.00010958,2]
[352172865,1738974638482,-500.0,0.00010958,2]
[352172866,1738974638492,-154.07154573,0.00010958,2]
[352172867,1738974638501,-500.0,0.00010958,2]
[352172868,1738974638511,-500.0,0.00010958,2]
[352172869,1738974638520,-500.0,0.00010958,2]
[352172870,1738974638530,-500.0,0.00010958,2]
[352172871,1738974638539,-188.01083267,0.00010958,2]
[352172872,1738974638548,-500.0,0.00010958,2]
[352172873,1738974638557,-500.0,0.00010958,2]
[352172874,1738974638567,-500.0,0.00010958,2]
[352172875,1738974638576,-500.0,0.00010958,2]
[352172876,1738974638585,-500.0,0.00010958,2]
[352172877,1738974638595,-500.0,0.00010958,2]
[352172878,1738974638604,-311.54707333,0.00010958,2]
[352172879,1738974638613,-500.0,0.00010958,2]
[352172880,1738974638622,-500.0,0.00010958,2]
[352172881,1738974638633,-500.0,0.00010958,2]
[352172882,1738974638642,-500.0,0.00010958,2]
[352172883,1738974638651,-500.0,0.00010958,2]
[352172884,1738974638660,-500.0,0.00010958,2]
[352172885,1738974638669,-500.0,0.00010958,2]
[352172886,1738974638678,-500.0,0.00010958,2]
[352172887,1738974638686,-302.45954562,0.00010958,2]
[352172888,1738974638699,-197.54045438,0.00010958,2]
[352172889,1738974638708,-500.0,0.00010958,2]
[352172890,1738974638718,-500.0,0.00010958,2]
[352172891,1738974638728,-500.0,0.00010958,2]
[352172892,1738974638737,-500.0,0.00010958,2]
[352172893,1738974638747,-500.0,0.00010958,2]
[352172894,1738974638756,-96.10876492,0.00010958,2]
[352172895,1738974638768,-348.17302129,0.00010958,2]
[352172896,1738974638779,-55.71821379,0.00010958,2]
[352172897,1738974638789,-500.0,0.00010958,2]
[352172898,1738974638799,-500.0,0.00010958,2]
[352172899,1738974638808,-500.0,0.00010958,2]
[352172900,1738974638817,-500.0,0.00010958,2]
[352172901,1738974638827,-483.90074773,0.00010958,2]
[352172902,1738974638836,-500.0,0.00010958,2]
[352172903,1738974638846,-500.0,0.00010958,2]
[352172904,1738974638855,-500.0,0.00010958,2]
[352172905,1738974638865,-317.7683323,0.00010958,2]
[352172906,1738974638874,-500.0,0.00010958,2]
[352172907,1738974638886,-500.0,0.00010958,2]
[352172908,1738974638894,-500.0,0.00010958,2]
[352172909,1738974638904,-500.0,0.00010958,2]
[352172910,1738974638914,-500.0,0.00010958,2]
[352172911,1738974638924,-500.0,0.00010958,2]
[352172913,1738974638933,-500.0,0.00010958,2]
[352172915,1738974638943,-500.0,0.00010958,2]
[352172917,1738974638952,-500.0,0.00010958,2]
[352172919,1738974638961,-612.81846506,0.00010958,2]
[352172921,1738974638971,-362.32917678,0.00010958,2]
[352172923,1738974638980,-500.0,0.00010958,2]
[352172925,1738974638989,-500.0,0.00010958,2]
[352172927,1738974638999,-500.0,0.00010958,2]
[352172929,1738974639009,-500.0,0.00010958,2]
[352172931,1738974639018,-500.0,0.00010958,2]
[352172932,1738974639027,-500.0,0.00010958,2]
[352172933,1738974639036,-500.0,0.00010958,2]
[352172934,1738974639046,-500.0,0.00010958,2]
[352172935,1738974639054,-500.0,0.00010958,2]
[352172936,1738974639064,-500.0,0.00010958,2]
[352172937,1738974639073,-500.0,0.00010958,2]
[352172938,1738974639083,-500.0,0.00010958,2]
[352172939,1738974639092,-500.0,0.00010958,2]